[Event "*** Titled Tuesday Blitz"]
[Site "Chess.com"]
[Date "2021.03.02"]
[Round "4"]
[White "Trankuilizer"]
[Black "DonPreuss"]
[Result "1-0"]
[WhiteElo "2575"]
[BlackElo "2297"]
[TimeControl "180+1"]
[EndTime "10:39:24 PST"]
[Termination "Trankuilizer won by resignation"]

1. e4 {[%clk 0:03:00.9]} 1... Nc6 {[%clk 0:02:58.2]} 2. Nf3 {[%clk 0:02:59.8]}
2... e5 {[%clk 0:02:57.6]} 3. Bc4 {[%clk 0:02:59]} 3... Bc5 {[%clk 0:02:56.8]}
4. c3 {[%clk 0:02:58.4]} 4... d6 {[%clk 0:02:56.1]} 5. d4 {[%clk 0:02:55.7]}
5... exd4 {[%clk 0:02:55.7]} 6. cxd4 {[%clk 0:02:55.5]} 6... Bb6 {[%clk
0:02:55]} 7. d5 {[%clk 0:02:55.1]} 7... Ne5 {[%clk 0:02:53]} 8. Nxe5 {[%clk
0:02:54.9]} 8... dxe5 {[%clk 0:02:53.2]} 9. O-O {[%clk 0:02:52.3]} 9... Ne7
{[%clk 0:02:51.3]} 10. Nc3 {[%clk 0:02:50.7]} 10... O-O {[%clk 0:02:46.4]} 11.
Bg5 {[%clk 0:02:48.8]} 11... Bc5 {[%clk 0:02:33.6]} 12. Rc1 {[%clk 0:02:40.9]}
12... Kh8 {[%clk 0:02:27.7]} 13. Bb3 {[%clk 0:02:38.3]} 13... Bd6 {[%clk
0:02:25.4]} 14. Nb5 {[%clk 0:02:37.7]} 14... f6 {[%clk 0:02:23.7]} 15. Be3
{[%clk 0:02:34.3]} 15... Ng6 {[%clk 0:02:21.5]} 16. Nxd6 {[%clk 0:02:28.4]}
16... cxd6 {[%clk 0:02:20]} 17. Rc3 {[%clk 0:02:28.9]} 17... f5 {[%clk
0:02:16.4]} 18. f3 {[%clk 0:02:07.6]} 18... f4 {[%clk 0:01:48.5]} 19. Bf2 {[%clk
0:02:07.1]} 19... Qg5 {[%clk 0:01:47.6]} 20. Kh1 {[%clk 0:02:00.9]} 20... Nh4
{[%clk 0:01:34.6]} 21. Bxh4 {[%clk 0:01:49.5]} 21... Qxh4 {[%clk 0:01:34.2]} 22.
Rc7 {[%clk 0:01:47.3]} 22... b6 {[%clk 0:01:07.6]} 23. Qe1 {[%clk 0:01:33.5]}
23... Qh5 {[%clk 0:01:05]} 24. Qf2 {[%clk 0:01:10.6]} 24... Ba6 {[%clk
0:00:40.6]} 25. Rfc1 {[%clk 0:01:09.8]} 25... Rf6 {[%clk 0:00:39.4]} 26. Bc4
{[%clk 0:00:53.2]} 26... Bxc4 {[%clk 0:00:34.3]} 27. R1xc4 {[%clk 0:00:52.4]}
27... Raf8 {[%clk 0:00:26.8]} 28. Rxa7 {[%clk 0:00:50.3]} 28... Rh6 {[%clk
0:00:26.8]} 29. h3 {[%clk 0:00:31.8]} 29... g5 {[%clk 0:00:24.7]} 30. Rcc7
{[%clk 0:00:28.9]} 30... g4 {[%clk 0:00:22.2]} 31. fxg4 {[%clk 0:00:28.5]} 31...
Qxg4 {[%clk 0:00:22.5]} 32. Rxh7+ {[%clk 0:00:28.1]} 32... Rxh7 {[%clk
0:00:18.4]} 33. Rxh7+ {[%clk 0:00:29]} 33... Kxh7 {[%clk 0:00:12.2]} 34. hxg4
{[%clk 0:00:29.9]} 34... Kg6 {[%clk 0:00:11.2]} 35. Qh4 {[%clk 0:00:26.9]} 35...
Rf7 {[%clk 0:00:05.6]} 36. Qh5+ {[%clk 0:00:25.6]} 1-0

[Event "*** Titled Tuesday Blitz"]
[Site "Chess.com"]
[Date "2021.03.02"]
[Round "4"]
[White "Kostukov_Alex"]
[Black "JoakimVonAnd"]
[Result "0-1"]
[WhiteElo "2323"]
[BlackElo "2497"]
[TimeControl "180+1"]
[EndTime "10:39:27 PST"]
[Termination "JoakimVonAnd won by resignation"]

1. g3 {[%clk 0:02:55.9]} 1... d5 {[%clk 0:02:58.2]} 2. Bg2 {[%clk 0:02:55.7]}
2... e5 {[%clk 0:02:58.2]} 3. d3 {[%clk 0:02:56.2]} 3... Nc6 {[%clk 0:02:53.2]}
4. e4 {[%clk 0:02:56.2]} 4... dxe4 {[%clk 0:02:50.3]} 5. dxe4 {[%clk 0:02:56.4]}
5... Qxd1+ {[%clk 0:02:48.1]} 6. Kxd1 {[%clk 0:02:57.3]} 6... Bg4+ {[%clk
0:02:42.2]} 7. f3 {[%clk 0:02:57.4]} 7... O-O-O+ {[%clk 0:02:42.3]} 8. Nd2
{[%clk 0:02:57.4]} 8... Be6 {[%clk 0:02:40.3]} 9. Bh3 {[%clk 0:02:56.6]} 9...
Bc5 {[%clk 0:02:34.7]} 10. Bxe6+ {[%clk 0:02:53.2]} 10... fxe6 {[%clk
0:02:35.6]} 11. c3 {[%clk 0:02:53.4]} 11... a5 {[%clk 0:02:29.8]} 12. Ke2 {[%clk
0:02:50.9]} 12... Nge7 {[%clk 0:02:24.8]} 13. a4 {[%clk 0:02:50.8]} 13... Rhf8
{[%clk 0:02:23.5]} 14. Nc4 {[%clk 0:02:44.2]} 14... Kb8 {[%clk 0:02:04.4]} 15.
Nh3 {[%clk 0:02:39]} 15... h6 {[%clk 0:02:01.3]} 16. Be3 {[%clk 0:02:31.3]}
16... Bxe3 {[%clk 0:01:59.4]} 17. Kxe3 {[%clk 0:02:32.2]} 17... Nc8 {[%clk
0:01:59.7]} 18. Nf2 {[%clk 0:02:30.9]} 18... Nd6 {[%clk 0:01:57.9]} 19. Nxd6
{[%clk 0:02:30.9]} 19... cxd6 {[%clk 0:01:58.1]} 20. Nd3 {[%clk 0:02:08.1]}
20... b6 {[%clk 0:01:50.8]} 21. b4 {[%clk 0:02:01.2]} 21... axb4 {[%clk
0:01:42.4]} 22. cxb4 {[%clk 0:02:00.5]} 22... Nd4 {[%clk 0:01:42.6]} 23. Raf1
{[%clk 0:01:43.9]} 23... Rc8 {[%clk 0:01:39.9]} 24. f4 {[%clk 0:01:41.4]} 24...
Nc2+ {[%clk 0:01:26.1]} 25. Kd2 {[%clk 0:01:40.5]} 25... exf4 {[%clk 0:01:25.8]}
26. Rxf4 {[%clk 0:01:34.3]} 26... Nd4 {[%clk 0:01:06]} 27. Rxf8 {[%clk
0:01:08.7]} 27... Rxf8 {[%clk 0:01:06.9]} 28. Ke3 {[%clk 0:01:00.2]} 28... e5
{[%clk 0:01:05.6]} 29. Rc1 {[%clk 0:00:55]} 29... Rf3+ {[%clk 0:01:02.7]} 30.
Kd2 {[%clk 0:00:54.6]} 30... Nb3+ {[%clk 0:01:02.7]} 31. Ke2 {[%clk 0:00:49.8]}
31... Rxd3 {[%clk 0:00:51.6]} 32. Rf1 {[%clk 0:00:30.4]} 32... Rd2+ {[%clk
0:00:42.5]} 33. Ke3 {[%clk 0:00:28]} 33... Rxh2 {[%clk 0:00:41.7]} 34. Rf8+
{[%clk 0:00:22.3]} 34... Kb7 {[%clk 0:00:40.7]} 35. Rf7+ {[%clk 0:00:22.8]}
35... Kc6 {[%clk 0:00:35.9]} 36. Rxg7 {[%clk 0:00:20.7]} 36... Nd4 {[%clk
0:00:33.9]} 37. b5+ {[%clk 0:00:17.9]} 37... Kc5 {[%clk 0:00:33.5]} 38. Rc7+
{[%clk 0:00:13.8]} 38... Kb4 {[%clk 0:00:33.5]} 39. Rb7 {[%clk 0:00:14.3]} 39...
Kxa4 {[%clk 0:00:32.5]} 40. Rxb6 {[%clk 0:00:14.3]} 40... Nxb5 {[%clk
0:00:33.1]} 41. Kf3 {[%clk 0:00:13.4]} 41... Kb4 {[%clk 0:00:32.2]} 42. Rc6
{[%clk 0:00:12.5]} 42... Nd4+ {[%clk 0:00:31]} 0-1

[Event "*** Titled Tuesday Blitz"]
[Site "Chess.com"]
[Date "2021.03.02"]
[Round "4"]
[White "Hikaru"]
[Black "baki83"]
[Result "1-0"]
[WhiteElo "3242"]
[BlackElo "2808"]
[TimeControl "180+1"]
[EndTime "10:39:28 PST"]
[Termination "Hikaru won by resignation"]

1. e4 {[%clk 0:03:00.9]} 1... e5 {[%clk 0:02:59.5]} 2. Nf3 {[%clk 0:02:59.6]}
2... Nc6 {[%clk 0:02:59.6]} 3. Bb5 {[%clk 0:02:52.4]} 3... Nf6 {[%clk
0:02:59.5]} 4. d3 {[%clk 0:02:51.6]} 4... Bc5 {[%clk 0:02:58.6]} 5. Bxc6 {[%clk
0:02:51.5]} 5... dxc6 {[%clk 0:02:58]} 6. Nbd2 {[%clk 0:02:52.4]} 6... Be6
{[%clk 0:02:57.4]} 7. Qe2 {[%clk 0:02:51]} 7... Bd6 {[%clk 0:02:56.7]} 8. Nc4
{[%clk 0:02:50.9]} 8... Nd7 {[%clk 0:02:53.5]} 9. b3 {[%clk 0:02:49.2]} 9... f6
{[%clk 0:02:51.9]} 10. O-O {[%clk 0:02:48.9]} 10... O-O {[%clk 0:02:51.4]} 11.
Nh4 {[%clk 0:02:45.8]} 11... a5 {[%clk 0:02:46.6]} 12. a4 {[%clk 0:02:44.1]}
12... Bb4 {[%clk 0:02:35.4]} 13. Ne3 {[%clk 0:02:41]} 13... Bc3 {[%clk
0:02:31.3]} 14. Rb1 {[%clk 0:02:40.4]} 14... g6 {[%clk 0:02:26.7]} 15. Bd2
{[%clk 0:02:15.6]} 15... Bd4 {[%clk 0:02:19.5]} 16. Kh1 {[%clk 0:02:15.4]} 16...
b5 {[%clk 0:02:17.3]} 17. Ng4 {[%clk 0:02:07.3]} 17... Kh8 {[%clk 0:02:05.7]}
18. g3 {[%clk 0:01:51.1]} 18... f5 {[%clk 0:01:53.6]} 19. exf5 {[%clk
0:01:50.4]} 19... gxf5 {[%clk 0:01:53.5]} 20. Ne3 {[%clk 0:01:48.8]} 20... f4
{[%clk 0:01:51.7]} 21. Nd1 {[%clk 0:01:40.3]} 21... f3 {[%clk 0:01:26.6]} 22.
Qe1 {[%clk 0:01:36.4]} 22... Bh3 {[%clk 0:01:17.3]} 23. Rg1 {[%clk 0:01:35.6]}
23... Qf6 {[%clk 0:01:04.6]} 24. Nc3 {[%clk 0:01:29.8]} 24... Nc5 {[%clk
0:00:46.6]} 25. axb5 {[%clk 0:01:30]} 25... Rae8 {[%clk 0:00:44.7]} 26. Ne4
{[%clk 0:01:05.6]} 26... Nxe4 {[%clk 0:00:42.1]} 27. dxe4 {[%clk 0:01:06.5]}
27... cxb5 {[%clk 0:00:36.4]} 28. Bxa5 {[%clk 0:01:03.2]} 28... Qc6 {[%clk
0:00:30.6]} 29. c3 {[%clk 0:00:55.5]} 29... Ba7 {[%clk 0:00:25.1]} 30. Bb4
{[%clk 0:00:49.4]} 30... Rf7 {[%clk 0:00:25.3]} 31. Rd1 {[%clk 0:00:49.2]} 31...
Rg8 {[%clk 0:00:25]} 32. Rd5 {[%clk 0:00:43.9]} 32... Qh6 {[%clk 0:00:16.2]} 33.
Bc5 {[%clk 0:00:36.9]} 33... c6 {[%clk 0:00:15]} 34. Rxe5 {[%clk 0:00:31.5]}
34... Bb8 {[%clk 0:00:14.7]} 35. Bd4 {[%clk 0:00:30.8]} 35... Rfg7 {[%clk
0:00:10]} 36. Re7 {[%clk 0:00:19.2]} 36... c5 {[%clk 0:00:07.9]} 37. Bxg7+
{[%clk 0:00:19]} 37... Rxg7 {[%clk 0:00:08.3]} 38. Rxg7 {[%clk 0:00:19.1]} 1-0

[Event "*** Titled Tuesday Blitz"]
[Site "Chess.com"]
[Date "2021.03.02"]
[Round "4"]
[White "kikydu96"]
[Black "NaciSAN"]
[Result "1-0"]
[WhiteElo "2574"]
[BlackElo "2307"]
[TimeControl "180+1"]
[EndTime "10:39:29 PST"]
[Termination "kikydu96 won on time"]

1. e4 {[%clk 0:03:00.9]} 1... e5 {[%clk 0:02:59.8]} 2. Nf3 {[%clk 0:03:00.1]}
2... Nc6 {[%clk 0:03:00.4]} 3. Bc4 {[%clk 0:02:59.4]} 3... Bc5 {[%clk
0:02:59.6]} 4. c3 {[%clk 0:02:59.5]} 4... Nf6 {[%clk 0:02:59.6]} 5. d3 {[%clk
0:02:58.8]} 5... d6 {[%clk 0:02:59.1]} 6. O-O {[%clk 0:02:58.1]} 6... a6 {[%clk
0:02:59.3]} 7. Bb3 {[%clk 0:02:56.7]} 7... Ba7 {[%clk 0:02:59.2]} 8. Nbd2 {[%clk
0:02:55.4]} 8... h6 {[%clk 0:02:58.7]} 9. Re1 {[%clk 0:02:54.4]} 9... O-O {[%clk
0:02:58.6]} 10. h3 {[%clk 0:02:53.8]} 10... Nh5 {[%clk 0:02:55]} 11. Nf1 {[%clk
0:02:48.1]} 11... Qf6 {[%clk 0:02:54.8]} 12. Ne3 {[%clk 0:02:45.3]} 12... Ne7
{[%clk 0:02:52.5]} 13. d4 {[%clk 0:02:37.2]} 13... Nf4 {[%clk 0:02:51.2]} 14.
dxe5 {[%clk 0:02:35]} 14... dxe5 {[%clk 0:02:51.1]} 15. Nd5 {[%clk 0:02:34.9]}
15... Nexd5 {[%clk 0:02:50.4]} 16. exd5 {[%clk 0:02:34.7]} 16... Bxh3 {[%clk
0:02:43.4]} 17. Bxf4 {[%clk 0:02:33.3]} 17... Qxf4 {[%clk 0:01:41.7]} 18. gxh3
{[%clk 0:02:30.6]} 18... e4 {[%clk 0:01:41.9]} 19. Nd4 {[%clk 0:02:26.4]} 19...
f5 {[%clk 0:01:28.9]} 20. Qe2 {[%clk 0:02:19.4]} 20... Rf6 {[%clk 0:01:07.2]}
21. Kh1 {[%clk 0:02:10.4]} 21... Qh4 {[%clk 0:01:04.4]} 22. Qf1 {[%clk
0:01:52.5]} 22... Bxd4 {[%clk 0:00:52.7]} 23. cxd4 {[%clk 0:01:51]} 23... Kh8
{[%clk 0:00:53.3]} 24. Rac1 {[%clk 0:01:49.3]} 24... Re8 {[%clk 0:00:25.2]} 25.
Rxc7 {[%clk 0:01:46.1]} 25... f4 {[%clk 0:00:25.3]} 26. Qg2 {[%clk 0:01:43.9]}
26... g5 {[%clk 0:00:20.7]} 27. Kh2 {[%clk 0:01:14.5]} 27... e3 {[%clk
0:00:20.5]} 28. Rc2 {[%clk 0:00:37.7]} 28... Ref8 {[%clk 0:00:09.3]} 29. Qg4
{[%clk 0:00:34.2]} 29... Qxg4 {[%clk 0:00:03.8]} 30. hxg4 {[%clk 0:00:34]} 30...
exf2 {[%clk 0:00:01.8]} 31. Rxf2 {[%clk 0:00:34.9]} 31... Kg7 {[%clk 0:00:01.5]}
32. Kg2 {[%clk 0:00:31.6]} 32... Kg6 {[%clk 0:00:01.5]} 33. Kf3 {[%clk
0:00:31.7]} 33... h5 {[%clk 0:00:01.8]} 34. gxh5+ {[%clk 0:00:31.4]} 34... Kxh5
{[%clk 0:00:02.7]} 35. Rh1+ {[%clk 0:00:28.7]} 35... Kg6 {[%clk 0:00:02.9]} 36.
Bc2+ {[%clk 0:00:29.4]} 36... Kf7 {[%clk 0:00:01.5]} 37. Rh7+ {[%clk 0:00:28.7]}
37... Ke8 {[%clk 0:00:02.2]} 38. Re2+ {[%clk 0:00:29]} 38... Kd8 {[%clk
0:00:02.2]} 39. Ree7 {[%clk 0:00:29.6]} 1-0

[Event "*** Titled Tuesday Blitz"]
[Site "Chess.com"]
[Date "2021.03.02"]
[Round "4"]
[White "Cuajada_Zero"]
[Black "zmeeed67"]
[Result "1-0"]
[WhiteElo "2270"]
[BlackElo "2422"]
[TimeControl "180+1"]
[EndTime "10:39:29 PST"]
[Termination "Cuajada_Zero won on time"]

1. d4 {[%clk 0:03:00.8]} 1... d5 {[%clk 0:02:56.2]} 2. c4 {[%clk 0:02:59.2]}
2... e6 {[%clk 0:02:56.5]} 3. Nc3 {[%clk 0:02:57.7]} 3... c6 {[%clk 0:02:56.9]}
4. Nf3 {[%clk 0:02:56.2]} 4... Nf6 {[%clk 0:02:56.6]} 5. g3 {[%clk 0:02:55.4]}
5... dxc4 {[%clk 0:02:56.4]} 6. Bg2 {[%clk 0:02:52.3]} 6... b5 {[%clk
0:02:56.3]} 7. O-O {[%clk 0:02:49.4]} 7... Bb7 {[%clk 0:02:55.9]} 8. e4 {[%clk
0:02:49.4]} 8... Nbd7 {[%clk 0:02:55.3]} 9. e5 {[%clk 0:02:49.4]} 9... Nd5
{[%clk 0:02:55.5]} 10. Ng5 {[%clk 0:02:48.9]} 10... Be7 {[%clk 0:02:31.6]} 11.
Qh5 {[%clk 0:02:46.2]} 11... g6 {[%clk 0:02:22.7]} 12. Qh6 {[%clk 0:02:45.4]}
12... Bf8 {[%clk 0:02:20.7]} 13. Qh3 {[%clk 0:02:41.4]} 13... Nxc3 {[%clk
0:01:15.2]} 14. bxc3 {[%clk 0:02:35.7]} 14... Qc7 {[%clk 0:01:14.5]} 15. a4
{[%clk 0:02:25.8]} 15... a6 {[%clk 0:01:14.4]} 16. Nxe6 {[%clk 0:01:43.6]} 16...
fxe6 {[%clk 0:01:14]} 17. Qxe6+ {[%clk 0:01:44.5]} 17... Be7 {[%clk 0:00:55.1]}
18. Bg5 {[%clk 0:01:44.8]} 18... Nf8 {[%clk 0:00:54.4]} 19. Qg4 {[%clk
0:01:10.9]} 19... Bxg5 {[%clk 0:00:41.4]} 20. Qxg5 {[%clk 0:01:11.8]} 20... Qe7
{[%clk 0:00:40.9]} 21. Qg4 {[%clk 0:01:02.5]} 21... Ne6 {[%clk 0:00:18.2]} 22.
f4 {[%clk 0:00:59.7]} 22... O-O-O {[%clk 0:00:05.7]} 23. axb5 {[%clk 0:00:59.7]}
23... cxb5 {[%clk 0:00:05.4]} 24. Rfd1 {[%clk 0:00:55.6]} 24... Bxg2 {[%clk
0:00:04.7]} 25. Kxg2 {[%clk 0:00:56.5]} 25... Kb8 {[%clk 0:00:03.4]} 26. d5
{[%clk 0:00:55.6]} 26... Nc5 {[%clk 0:00:02.5]} 27. d6 {[%clk 0:00:55.9]} 27...
Qb7+ {[%clk 0:00:02.7]} 28. Kg1 {[%clk 0:00:55.1]} 28... Rhe8 {[%clk 0:00:03.2]}
29. Rd4 {[%clk 0:00:50.6]} 29... Nb3 {[%clk 0:00:03.2]} 30. Rad1 {[%clk
0:00:45.7]} 30... Nxd4 {[%clk 0:00:03.6]} 31. cxd4 {[%clk 0:00:45.9]} 31... Qd7
{[%clk 0:00:03.6]} 32. Qf3 {[%clk 0:00:43.6]} 32... Qb7 {[%clk 0:00:03.4]} 33.
d5 {[%clk 0:00:43.8]} 33... Rc8 {[%clk 0:00:03.6]} 34. Kg2 {[%clk 0:00:37.4]}
34... c3 {[%clk 0:00:03.3]} 35. e6 {[%clk 0:00:37.7]} 35... c2 {[%clk
0:00:03.8]} 36. Rc1 {[%clk 0:00:38]} 36... Rcd8 {[%clk 0:00:02]} 37. d7 {[%clk
0:00:37.1]} 37... Rxe6 {[%clk 0:00:01.3]} 38. dxe6 {[%clk 0:00:36.3]} 38... Qb6
{[%clk 0:00:01.2]} 39. e7 {[%clk 0:00:34.1]} 1-0

[Event "*** Titled Tuesday Blitz"]
[Site "Chess.com"]
[Date "2021.03.02"]
[Round "4"]
[White "Vallek86"]
[Black "Mikhail_Golubev"]
[Result "0-1"]
[WhiteElo "2357"]
[BlackElo "2593"]
[TimeControl "180+1"]
[EndTime "10:39:30 PST"]
[Termination "Mikhail_Golubev won by resignation"]

1. d4 {[%clk 0:03:00.9]} 1... Nf6 {[%clk 0:02:59.1]} 2. Bg5 {[%clk 0:03:00.5]}
2... d5 {[%clk 0:02:58.3]} 3. Bxf6 {[%clk 0:02:57.8]} 3... gxf6 {[%clk
0:02:58.3]} 4. e3 {[%clk 0:02:58.1]} 4... c5 {[%clk 0:02:57.7]} 5. c3 {[%clk
0:02:58.2]} 5... e5 {[%clk 0:02:48.2]} 6. dxe5 {[%clk 0:02:54.3]} 6... fxe5
{[%clk 0:02:46.7]} 7. Nd2 {[%clk 0:02:50.7]} 7... Nc6 {[%clk 0:02:36.7]} 8. Qh5
{[%clk 0:02:29.9]} 8... Qf6 {[%clk 0:02:09.6]} 9. Ngf3 {[%clk 0:02:08.7]} 9...
e4 {[%clk 0:01:59.2]} 10. Ng1 {[%clk 0:02:07.9]} 10... Be6 {[%clk 0:01:53.2]}
11. Ne2 {[%clk 0:02:03.3]} 11... O-O-O {[%clk 0:01:39.2]} 12. Nf4 {[%clk
0:02:01.5]} 12... d4 {[%clk 0:01:35]} 13. Nxe4 {[%clk 0:01:46.7]} 13... Qe7
{[%clk 0:01:27.7]} 14. Nxe6 {[%clk 0:01:19.3]} 14... Qxe6 {[%clk 0:01:23.6]} 15.
Nxc5 {[%clk 0:01:14.4]} 15... Bxc5 {[%clk 0:01:01.2]} 16. Qxc5 {[%clk
0:01:13.8]} 16... Rd5 {[%clk 0:01:01.3]} 17. Bc4 {[%clk 0:00:49.7]} 17... Rxc5
{[%clk 0:01:01.3]} 18. Bxe6+ {[%clk 0:00:49.7]} 18... fxe6 {[%clk 0:01:02.2]}
19. exd4 {[%clk 0:00:45.2]} 19... Rg5 {[%clk 0:01:00.9]} 20. g3 {[%clk
0:00:44.2]} 20... e5 {[%clk 0:01:00]} 21. d5 {[%clk 0:00:41.7]} 21... Ne7 {[%clk
0:00:54.2]} 22. Rd1 {[%clk 0:00:38.4]} 22... Rd8 {[%clk 0:00:51.5]} 23. c4
{[%clk 0:00:37.7]} 23... Nf5 {[%clk 0:00:51]} 24. Ke2 {[%clk 0:00:35.3]} 24...
Nd4+ {[%clk 0:00:50.4]} 25. Ke3 {[%clk 0:00:35.4]} 25... Nf5+ {[%clk 0:00:35.5]}
26. Ke2 {[%clk 0:00:31.3]} 26... Rg4 {[%clk 0:00:34.2]} 27. b3 {[%clk
0:00:30.3]} 27... Nd4+ {[%clk 0:00:31.4]} 28. Ke3 {[%clk 0:00:29.4]} 28... Rf8
{[%clk 0:00:30.3]} 29. f4 {[%clk 0:00:29.1]} 29... Nf5+ {[%clk 0:00:24.6]} 30.
Kf3 {[%clk 0:00:29.5]} 30... h5 {[%clk 0:00:24.5]} 31. fxe5 {[%clk 0:00:29.4]}
31... Nxg3+ {[%clk 0:00:24.4]} 32. Ke3 {[%clk 0:00:28.9]} 32... Nxh1 {[%clk
0:00:23.9]} 33. Rxh1 {[%clk 0:00:28.8]} 33... Kd7 {[%clk 0:00:21]} 34. Re1
{[%clk 0:00:19.5]} 34... b6 {[%clk 0:00:20.6]} 35. Kd3 {[%clk 0:00:18.9]} 35...
Rf3+ {[%clk 0:00:20.1]} 36. Kc2 {[%clk 0:00:18.9]} 36... Rg2+ {[%clk 0:00:19.7]}
37. Kc1 {[%clk 0:00:18.5]} 37... Rxa2 {[%clk 0:00:18.1]} 38. Kb1 {[%clk
0:00:18.7]} 38... Ra3 {[%clk 0:00:17.1]} 39. e6+ {[%clk 0:00:18.6]} 39... Ke8
{[%clk 0:00:16.3]} 0-1

[Event "*** Titled Tuesday Blitz"]
[Site "Chess.com"]
[Date "2021.03.02"]
[Round "4"]
[White "Chernov_Mikhail"]
[Black "LawrenceTrent"]
[Result "0-1"]
[WhiteElo "2339"]
[BlackElo "2536"]
[TimeControl "180+1"]
[EndTime "10:39:33 PST"]
[Termination "LawrenceTrent won by resignation"]

1. e4 {[%clk 0:03:00.9]} 1... e6 {[%clk 0:03:00.9]} 2. d4 {[%clk 0:02:59.9]}
2... d5 {[%clk 0:03:01.5]} 3. c4 {[%clk 0:03:00.5]} 3... dxe4 {[%clk 0:03:00]}
4. Nc3 {[%clk 0:03:01]} 4... Nf6 {[%clk 0:03:00.2]} 5. f3 {[%clk 0:03:01.4]}
5... e3 {[%clk 0:02:59.4]} 6. Bxe3 {[%clk 0:03:01.2]} 6... Bb4 {[%clk
0:02:51.2]} 7. Qc2 {[%clk 0:03:00.9]} 7... O-O {[%clk 0:02:50.8]} 8. O-O-O
{[%clk 0:02:57.4]} 8... c5 {[%clk 0:02:50.7]} 9. d5 {[%clk 0:02:41.7]} 9... Qa5
{[%clk 0:02:48.6]} 10. a3 {[%clk 0:02:26]} 10... Bxc3 {[%clk 0:02:47.3]} 11.
Qxc3 {[%clk 0:02:26.9]} 11... Qxc3+ {[%clk 0:02:47.8]} 12. bxc3 {[%clk
0:02:27.8]} 12... b6 {[%clk 0:02:48.5]} 13. g4 {[%clk 0:02:17.6]} 13... Bb7
{[%clk 0:02:23]} 14. g5 {[%clk 0:02:14.1]} 14... Nh5 {[%clk 0:02:16.4]} 15. Bh3
{[%clk 0:02:00.2]} 15... Na6 {[%clk 0:01:43.4]} 16. Ne2 {[%clk 0:01:53.1]} 16...
Rad8 {[%clk 0:01:39.5]} 17. Bg4 {[%clk 0:01:28.3]} 17... g6 {[%clk 0:01:35.5]}
18. d6 {[%clk 0:01:09.8]} 18... Ng7 {[%clk 0:01:26.6]} 19. Ng3 {[%clk
0:01:04.1]} 19... Nf5 {[%clk 0:01:24.2]} 20. Bf4 {[%clk 0:01:00.7]} 20... Rd7
{[%clk 0:01:18.1]} 21. Ne4 {[%clk 0:00:58.8]} 21... Bxe4 {[%clk 0:00:58]} 22.
fxe4 {[%clk 0:00:59.7]} 22... Ng7 {[%clk 0:00:58.4]} 23. Be5 {[%clk 0:00:44.7]}
23... Nb8 {[%clk 0:00:54.9]} 24. Bf6 {[%clk 0:00:36.7]} 24... Nc6 {[%clk
0:00:52.6]} 25. e5 {[%clk 0:00:35.1]} 25... Rc8 {[%clk 0:00:50.7]} 26. h4 {[%clk
0:00:33.9]} 26... Ne8 {[%clk 0:00:49.8]} 27. h5 {[%clk 0:00:31.4]} 27... Nxf6
{[%clk 0:00:50.1]} 28. exf6 {[%clk 0:00:30.1]} 28... Ne5 {[%clk 0:00:46.4]} 29.
Be2 {[%clk 0:00:29.3]} 29... Rcd8 {[%clk 0:00:46.3]} 30. hxg6 {[%clk 0:00:28.8]}
30... fxg6 {[%clk 0:00:40.6]} 31. Rh4 {[%clk 0:00:23.3]} 31... Rxd6 {[%clk
0:00:38.9]} 32. Rdh1 {[%clk 0:00:23.9]} 32... R8d7 {[%clk 0:00:39.4]} 33. Bd1
{[%clk 0:00:17.3]} 33... Nd3+ {[%clk 0:00:35.7]} 34. Kb1 {[%clk 0:00:09.3]}
34... Nf2 {[%clk 0:00:36.6]} 35. Bg4 {[%clk 0:00:08]} 35... Nxh1 {[%clk
0:00:35.5]} 36. Rxh1 {[%clk 0:00:08.9]} 36... h5 {[%clk 0:00:28.6]} 37. gxh6
{[%clk 0:00:08.2]} 37... Kh7 {[%clk 0:00:29.1]} 38. Rf1 {[%clk 0:00:06.6]} 38...
Rf7 {[%clk 0:00:28.1]} 39. Be2 {[%clk 0:00:05]} 39... e5 {[%clk 0:00:28.2]} 40.
Bf3 {[%clk 0:00:04.7]} 40... Rdxf6 {[%clk 0:00:28.4]} 0-1

[Event "*** Titled Tuesday Blitz"]
[Site "Chess.com"]
[Date "2021.03.02"]
[Round "4"]
[White "1random"]
[Black "Xeniya2005"]
[Result "1-0"]
[WhiteElo "2660"]
[BlackElo "2356"]
[TimeControl "180+1"]
[EndTime "10:39:34 PST"]
[Termination "1random won by checkmate"]

1. e4 {[%clk 0:02:59.9]} 1... e6 {[%clk 0:02:58.6]} 2. d4 {[%clk 0:02:53.5]}
2... d5 {[%clk 0:02:58.6]} 3. Nd2 {[%clk 0:02:54.3]} 3... c5 {[%clk 0:02:58.1]}
4. exd5 {[%clk 0:02:54.8]} 4... Qxd5 {[%clk 0:02:59]} 5. Ngf3 {[%clk 0:02:55.4]}
5... cxd4 {[%clk 0:02:59.2]} 6. Bc4 {[%clk 0:02:56.3]} 6... Qd6 {[%clk
0:02:59.5]} 7. O-O {[%clk 0:02:56.9]} 7... Nf6 {[%clk 0:02:59.5]} 8. Nb3 {[%clk
0:02:57.7]} 8... Nc6 {[%clk 0:02:59.7]} 9. Nbxd4 {[%clk 0:02:58.6]} 9... Nxd4
{[%clk 0:03:00.3]} 10. Nxd4 {[%clk 0:02:59.5]} 10... Be7 {[%clk 0:03:00.6]} 11.
c3 {[%clk 0:02:59.4]} 11... O-O {[%clk 0:03:00.4]} 12. Qf3 {[%clk 0:02:59.5]}
12... a6 {[%clk 0:02:57.8]} 13. Bb3 {[%clk 0:02:45.6]} 13... Qc7 {[%clk
0:02:56]} 14. Re1 {[%clk 0:02:13.6]} 14... Re8 {[%clk 0:02:28.8]} 15. Bg5 {[%clk
0:01:59.3]} 15... Bd7 {[%clk 0:02:23.6]} 16. Rad1 {[%clk 0:01:55.1]} 16... Rad8
{[%clk 0:02:21.9]} 17. h4 {[%clk 0:01:52.7]} 17... h6 {[%clk 0:02:18.5]} 18. Bf4
{[%clk 0:01:50.1]} 18... Qc8 {[%clk 0:02:07.7]} 19. h5 {[%clk 0:01:33.4]} 19...
Nh7 {[%clk 0:01:18.6]} 20. Qg3 {[%clk 0:01:25.8]} 20... Kh8 {[%clk 0:01:05.3]}
21. Bc7 {[%clk 0:01:12.5]} 21... Bh4 {[%clk 0:00:58.2]} 22. Qh2 {[%clk
0:01:04.1]} 22... Bf6 {[%clk 0:00:51.7]} 23. Bxd8 {[%clk 0:00:58.6]} 23... Bxd8
{[%clk 0:00:50.4]} 24. Qf4 {[%clk 0:00:55]} 24... Ng5 {[%clk 0:00:44.1]} 25. Nf3
{[%clk 0:00:51.4]} 25... Bc7 {[%clk 0:00:40.2]} 26. Qe3 {[%clk 0:00:52.1]} 26...
Nxf3+ {[%clk 0:00:25.6]} 27. Qxf3 {[%clk 0:00:53]} 27... Kg8 {[%clk 0:00:25.3]}
28. Bc2 {[%clk 0:00:47]} 28... Bc6 {[%clk 0:00:20.1]} 29. Be4 {[%clk 0:00:47.3]}
29... Bxe4 {[%clk 0:00:16.9]} 30. Qxe4 {[%clk 0:00:48.2]} 30... Bb8 {[%clk
0:00:17.2]} 31. g3 {[%clk 0:00:47.8]} 31... Qc7 {[%clk 0:00:16.6]} 32. Rd3
{[%clk 0:00:47.4]} 32... Qe7 {[%clk 0:00:16]} 33. Red1 {[%clk 0:00:46.2]} 33...
b5 {[%clk 0:00:12.7]} 34. Qf3 {[%clk 0:00:43.8]} 34... Qg5 {[%clk 0:00:12.3]}
35. Rd7 {[%clk 0:00:43.6]} 35... Rf8 {[%clk 0:00:12.3]} 36. Kg2 {[%clk 0:00:44]}
36... f5 {[%clk 0:00:10.2]} 37. Qe2 {[%clk 0:00:39.2]} 37... f4 {[%clk
0:00:07.6]} 38. Qxe6+ {[%clk 0:00:38.9]} 38... Kh8 {[%clk 0:00:07.8]} 39. Qg6
{[%clk 0:00:36.3]} 39... Qc5 {[%clk 0:00:04.3]} 40. Qxg7# {[%clk 0:00:32.3]} 1-0